Workbook

Sheet Título

Sheet Calculadores
A1: Nos calculadores, preencha as células a verde e, depois, carregue no botão se houver! Se tiver dificuldades ler a folha "Título"! | AB1: Ângulo da placa com a vertical (º)
A2: O resultado aparece nas células a vermelho. Informação ou o mesmo cálculo, mas com outras unidades, pode aparecer em células a roxo. | AA2: Preencher tb. ====>
A3: Se o botão for necessário, ele aparecerá sempre à esquerda! | B3: Não se esqueça de que as macros têm de estar ativadas! | D3: Zona para rascunho | G3: Zona para rascunho
A4: Ir para o calculador (clicar no link!):
A5: Ordem alfabética | B5: Símbolos
A6: Ângulo zenital do sol | B6: y
A7: Azimute do sol | B7: Az
A8: Calor latente de vaporização da água | B8: l
A9: Coeficientes de difusão molecular | B9: DM, DH, DV, DC
A10: Constante Psicrométrica | B10: g
A11: Declinação do sol | B11: d
A12: Densidade do ar | B12: ra
A13: Equação do tempo | B13: ET
A14: Fator de correção (Cf)para a evapotranspiração potencial não-ajustada (ETp'), segundo o método de Thornthwaite. | B14: Cf
A15: Hora do nascer/pôr do sol/fotoperíodo | B15: Sr, Ss, Dl
A16: Humidade absoluta | B16: χ
A17: Humidade específica | B17: q
A18: Convecção forçada - Cálculo do número de Nusselt (ar) | B18: Nu
A19: Convecção livre - Cálculo do número de Nusselt (ar) | B19: Nu
A20: Ponto de orvalho | B20: To
A21: Pressão atmosférica | B21: p
A22: Radiação diária no topo da atmosfera (horizontal) | B22: So
A23: Radiação emitida pelo corpo negro | B23: Ebk
A24: Razão de mistura | B24: r
A25: Taxa de variação de es com T | B25: D
A26: Temperatura virtual | B26: Tv
A27: Temperatura do termómetro molhado (2 versões) | B27: Tm
A28: Tensão de saturação do vapor de água | B28: es
A29: Tensão real de vapor de água (Eq. Psicrométrica) | B29: ea
A31: 1) Calculador para o fator de correção (Cf) que afeta a evapotranspiração potencial não-ajustada (ETp') para que fique ajustada (ETp), segundo o método de Thornthwaite.
C32: Voltar ao Índice --->
A34: Latitude do local (e.g., 38,7) | B34: Janeiro | C34: Fevereiro | D34: Março | E34: Abril | F34: Maio | G34: Junho | H34: Julho | I34: Agosto | J34: Setembro | K34: Outubro | L34: Novembro | M34: Dezembro
A35: 38 | B35: 25.3 | C35: 25.0 | D35: 30.7 | E35: 32.8 | F35: 36.6 | G35: 36.8 | H35: 37.4 | I35: 35.1 | J35: 31.1 | K35: 29.0 | L35: 25.3 | M35: 24.6
A41: 2) Calculador da declinação do sol no dia do ano (DOY) indicado. Pode-se entrar com frações do dia. (e. g., 21.5 é o meio dia de 22 Jan).
A42: Localização: | C42: Voltar ao Índice --->
A43: DOY: | B43: 100
A45: Declinação: | B45: =calcSolarDeclination(B43) -> 0.13 | C45: rad | D45: = | E45: =B45*180/PI() -> 7.61 | F45: º
A51: 3) Equação do tempo. Calcula a diferença entre o o tempo solar verdadeiro e o tempo médio solar.
B52: Pode-se entrar com frações do dia. (e. g., 21.5 é o meio dia de 22 Jan).
A53: Localização: | C53: Voltar ao Índice --->
A54: DOY: | B54: 100
A56: Equação do tempo: | B56: =calcEqOfTime(B54) -> -0.027 | C56: h | D56: = | E56: =B56*60 -> -1.62 | F56: min
A61: 4) Calculador: Hora do nascer/pôr do sol (geométrico, aparente, crepúsculo)/fotoperíodo (geométrico, aparente, crepúsculo).
A65: Localização: | B65: Los Angeles
A66: Nascer/pôr do sol/fotoperíodo? | B66: Pôr do sol | C66: Voltar ao Índice --->
A67: Geométrico/aparente/crepúsculo civil? | B67: Aparente
A68: DOY: | B68: 212
A69: Latitude (e.g., 38,7) | B69: =34+3/60 -> 34.05 | C69: º
A70: Longitude (e.g., -9,1) | B70: =-(118+13/60+59/3600) -> -118.2330556 | C70: º | D70: Longitude Meridiano Padrão | E70: -120 | F70: º
A71: Nascer do Sol | B71: 5.07 | C71: horas (hora solar!) | D71: = | E71: 13.06 | F71: h (UTC) | G71: (Hora do próprio dia!)
A74: 5) Calculador do ângulo zenital do sol
A78: Localização: | C78: Voltar ao Índice --->
A79: DOY: | B79: 100
A80: Latitude (e.g., 38,7) | B80: 38.7 | C80: º
A81: Hora solar | B81: 16 | C81: h (hora solar!)
A82: Ângulo zenital | B82: 1.08 | C82: rad | D82: = | E82: =B82*180/PI() -> 62.00 | F82: º
A87: 6) Calculador do azimute do sol | C87: Voltar ao Índice --->
A91: Localização:
A92: DOY: | B92: 100
A93: Latitude (e.g., 38,7) | B93: 50 | C93: º
A94: Hora solar | B94: 12 | C94: h (hora solar!)
A95: Azimute do sol | B95: 0 | C95: rad | D95: = | E95: =B95*180/PI() -> 0 | F95: º
A97: 7) Calculadores de Grandezas de Humidade do Ar | C97: Voltar ao Índice --->
A98: Atenção: Nestes calculadores, preencher sempre as células a começar da esquerda para a direita!
A99: Pressão atmosférica (p, Pa) | B99: Altitude (m)
A100: =101325*((293-0.0065*B100)/293)^5.25 -> 79843.8 | B100: 2000
A102: Tensão de saturação do vapor de água (es, Pa) | B102: Temperatura (T, ºC) | C102: Voltar ao Índice --->
A103: =calcSatVapPres(B103)*1000 -> 2337.1 | B103: 20
A105: Taxa de variação de es com T (D, Pa/ºC) | B105: Temperatura (ºC) | C105: Voltar ao Índice --->
A106: =calcSlope(B106)*1000 -> 144.5 | B106: 20
A108: Humidade absoluta (χ, g m-3) | B108: Temperatura (ºC) | C108: Tensão de vapor (e, Pa) | D108: Voltar ao Índice ---> | E108: Informação:
A109: =2.165*C109/(273.15+B109) -> 14.77 | B109: 20 | C109: 2000 | E109: es= | F109: =calcSatVapPres(B109)*1000 -> 2337.1 | G109: Pa
A111: Humidade específica (q, adimensional) | B111: Tensão de vapor (e, Pa) | C111: Pressão atmosférica (P, Pa) | D111: Voltar ao Índice --->
A112: =0.622*B112/((C112-B112)+0.622*B112) -> 0.01237 | B112: 2000 | C112: 1.013E+05
A114: Razão de mistura (r, adimensional) | B114: Tensão de vapor (e, Pa) | C114: Pressão atmosférica (P, Pa) | D114: Voltar ao Índice --->
A115: =0.622*B115/(C115-B115) -> 0.01253 | B115: 2000 | C115: 1.013E+05
A117: Temperatura do ponto de orvalho (To, ºC) | B117: Tensão de vapor (e, Pa) | C117: Voltar ao Índice --->
A118: =237.3*((LN(B118/610.8)/17.27)/(1-(LN(B118/610.8)/17.27))) -> 17.5 | B118: 2000
A120: Equação Psicrométrica
A121: Tensão real de vapor de água (ea, Pa) | B121: Temp. do ar (= temp. termóm.seco) | C121: Temp. termómetro molhado | D121: Altitude (m) | E121: Voltar ao Índice --->
A122: =IF(B122<C122,"Erro! T.ar<T. molhado",calcEqPsicrom(B122,C122,D122)*1000) -> 2037.8 | B122: 25 | C122: 20 | D122: 1000
A124: Temperatura virtual (Tv, ºC) | B124: Temperatura (ºC) | C124: Tensão de vapor (e, Pa) | D124: Pressão atmosférica (P, Pa) | E124: Voltar ao Índice ---> | F124: Informação:
A125: =(273.15+B125)/(1-(1-0.622)*C125/D125)-273.15 -> 21.1 | B125: 20 | C125: 1000 | D125: 1.013E+05 | F125: es= | G125: =calcSatVapPres(B125)*1000 -> 2337.1 | H125: Pa
A127: Densidade do ar (r, kg m-3) | B127: Temperatura (ºC) | C127: Tensão de vapor (e, Pa) | D127: Pressão atmosférica (P, Pa) | E127: Voltar ao Índice ---> | F127: Informação:
A128: =(C128*0.018+(D128-C128)*0.02897)/(8.3145*(273.15+B128)) -> 1.200 | B128: 20 | C128: 1000.0 | D128: 1.013E+05 | F128: es= | G128: =calcSatVapPres(B128)*1000 -> 2337.1 | H128: Pa
A130: 8) Outras propriedades do ar e água
A132: Calor latente de vaporização da água (l, J kg-1) | B132: Temperatura (ºC) | C132: Voltar ao Índice --->
A133: =calcLatHeatH2O(B133)*1000 -> 2,453,760 | B133: 20
A135: Constante Psicrométrica (g, Pa ºC-1) | B135: Temperatura (ºC) | C135: Altitude (m) | D135: Voltar ao Índice --->
A136: =calcPsycConst3(B136,C136)*1000 -> 64.84 | B136: 30 | C136: 400
A138: 9) Radiação emitida pelo corpo negro a determinada temperatura | C138: Voltar ao Índice --->
A139: Emitância do corpo negro (Ebk, W m-2) | B139: Temperatura (ºC)
A140: =0.0000000567*(273.15+B140)^4 -> 419 | B140: 20
A142: 10) Radiação diária no topo da atmosfera numa superfície plana e horizontal | C142: Voltar ao Índice --->
A143: Rad. diária no topo da atmosfera (So, MJ m-2 d-1) | B143: DOY: | C143: Latitude (e.g., 38,7) | E143: Equivalente de evaporação:
A144: =calcPotentialSolar2(B144,C144) -> 32.67 | B144: 110 | C144: 50 | D144: = | E144: =0.408*A144 -> 13.33 | F144: mm m-2 d-1
A149: 11) Coeficientes de difusão molecular (DM, DH, DV, DC)
A150: Escolha na célula abaixo (B151) o coeficiente! | C150: Voltar ao Índice --->
A151: DM, DH, DV ou DC ? | B151: DM
A152: Temperatura do ar (ºC) | B152: 30 | C152: ºC
A153: Pressão atmosférica (Pa) | B153: 101325 | C153: Pa
A154: =B151 -> DM | B154: =calcDifGasInAir(B151,B152,B153) -> 1.60E-05 | C154: m2 s-1
A156: 12) Cálculo da temperatura do termómetro molhado (Tm, ºC) usando altitude, temperatura do ar e do ponto de orvalho
C157: Voltar ao Índice --->
A158: Altitude (m): | B158: 680 | C158: m
A159: Temperatura do ar (ºC): | B159: 22.10 | C159: ºC
A160: Temperatura do ponto de orvalho (ºC): | B160: 14.00 | C160: ºC
A161: Temperatura do termómetro molhado (Tm, ºC) | B161: =calcTw(B158, B159, B160) -> 16.88
A164: 13) Cálculo da temperatura do termómetro molhado (Tm, ºC) usando a pressão atmosférica, temperatura do ar e do ponto de orvalho
C165: Voltar ao Índice --->
A166: Pressão atmosférica (Pa): | B166: 93670 | C166: Pa
A167: Temperatura do ar (ºC): | B167: 22.10 | C167: ºC
A168: Temperatura do ponto de orvalho (ºC): | B168: 14.00 | C168: ºC
A169: Temperatura do termómetro molhado (Tm, ºC): | B169: =calcTw2(B166/1000, B167, B168) -> 16.88
A172: 14) Convecção forçada - Cálculo do número de Nusselt para o ar
C174: --------->--------->-Info->--------->--------->
A176: Escolher configuração do objeto: | B176: Esfera | C176: Voltar ao Índice --->
A177: Pressão atmosférica (Pa): | B177: 101325.00
A178: Velocidade do ar (m/s): | B178: 1.00
A179: Dimensão característica (m): | B179: 0.01
A180: Temperatura da superfície (ºC): | B180: 25.00 | C180: --------->--------->-Info->--------->--------->
A181: Temperatura do ar (ºC): | B181: 23.00
A182: Número de Nusselt: | B182: 14.736 | C182: Convecção forçada!
A183: Note que algumas equações são mais precisas do que as utilizadas no meu livro: "Agrometeorologia: Aplicação da Meteorologia para Maximizar a Produção Agrícola". 2018. Agrobook. Assim, os valores de Nu podem ser até cerca de 20% diferentes em alguns casos.
A186: 14) Convecção livre (natural) - Cálculo do número de Nusselt para o ar
C188: Voltar ao Índice --->
A190: Escolher configuração do objeto: | B190: Placa plana horizontal 1
A191: Pressão atmosférica (Pa): | B191: 101325.00
A192: Velocidade do ar (m/s): | B192: 0.20 | C192: --------->--------->-Info->--------->--------->
A193: Dimensão característica (m): | B193: 0.20
A194: Temperatura da superfície (ºC): | B194: 25.00
A195: Temperatura do ar (ºC): | B195: 23.00
A196: Humidade relativa do ar (0 - 1) | B196: 0.80 | C196: --------->--------->-Info->--------->--------->
A197: Superfície molhada? | B197: N
A198: Número de Nusselt: | B198: 19.041 | C198: Convecção mista! O Nu para a c. forçada e livre deve ser combinados. Ver nota a seguir!
A199: Note que algumas equações são mais precisas do que as utilizadas no meu livro: "Agrometeorologia: Aplicação da Meteorologia para Maximizar a Produção Agrícola". 2018. Agrobook. Assim, os valores de Nu podem ser até cerca de 20% diferentes em alguns casos.
A203: Nota:
A204: O nº de Nusselt combinado (Nucomb) deve ser estimado para cada caso particular, usando os valores calculados para a c. forçada e livre "puras".
A205: A forma da equação será:
A207: em que n costuma ser entre 3 e 4 para a maioria das configurações, e o sinal ± refere-se ao fato de os efeitos de ambos os modos de convecção
A208: se potenciarem ou contrariarem.

Sheet Tabela1A_Es_T
A1: Tabela 1A. Tensão de saturação do vapor de água, es [Pa] em função da temperatura [ºC]
A2: ºC | B2: 0 | C2: 0.1 | D2: 0.2 | E2: 0.3 | F2: 0.4 | G2: 0.5 | H2: 0.6 | I2: 0.7 | J2: 0.8 | K2: 0.9
A3: 0 | B3: =calcSatVapPres($A3+B$2)*1000 -> 611 | C3: =calcSatVapPres($A3+C$2)*1000 -> 615 | D3: 620 | E3: 624 | F3: 629 | G3: 633 | H3: 638 | I3: 643 | J3: 647 | K3: 652
A4: 1 | B4: 657 | C4: 661 | D4: 666 | E4: 671 | F4: 676 | G4: 681 | H4: 686 | I4: 690 | J4: 695 | K4: 700
A5: 2 | B5: 705 | C5: 710 | E5: 721 | F5: 726 | G5: 731 | H5: 736 | I5: 742 | J5: 747 | K5: 752
A6: 3 | B6: 757 | C6: 763 | D6: 768 | E6: 774 | F6: 779 | G6: 785 | H6: 790 | I6: 796 | J6: 802 | K6: 807
A7: 4 | B7: 813 | C7: 819 | D7: 824 | E7: 830 | F7: 836 | G7: 842 | H7: 848 | I7: 854 | J7: 860 | K7: 866
A8: 5 | B8: 872 | C8: 878 | D8: 884 | E8: 890 | F8: 896 | G8: 903 | H8: 909 | I8: 915 | J8: 922 | K8: 928
A9: 6 | B9: 935 | C9: 941 | D9: 948 | E9: 954 | F9: 961 | G9: 967 | H9: 974 | I9: 981 | J9: 988 | K9: 994
A10: 7 | B10: 1001 | C10: 1008 | D10: 1015 | E10: 1022 | F10: 1029 | G10: 1036 | H10: 1043 | I10: 1050 | J10: 1058 | K10: 1065
A11: 8 | B11: 1072 | C11: 1079 | D11: 1087 | E11: 1094 | F11: 1102 | G11: 1109 | H11: 1117 | I11: 1124 | J11: 1132 | K11: 1140
A12: 9 | B12: 1147 | C12: 1155 | D12: 1163 | E12: 1171 | F12: 1179 | G12: 1187 | H12: 1195 | I12: 1203 | J12: 1211 | K12: 1219
A13: 10 | B13: 1227 | C13: 1235 | D13: 1244 | E13: 1252 | F13: 1260 | G13: 1269 | H13: 1277 | I13: 1286 | J13: 1294 | K13: 1303
A14: 11 | B14: 1312 | C14: 1320 | D14: 1329 | E14: 1338 | F14: 1347 | G14: 1356 | H14: 1365 | I14: 1374 | J14: 1383 | K14: 1392
A15: 12 | B15: 1402 | C15: 1411 | D15: 1420 | E15: 1429 | F15: 1439 | G15: 1448 | H15: 1458 | I15: 1468 | J15: 1477 | K15: 1487
A16: 13 | B16: 1497 | C16: 1507 | D16: 1516 | E16: 1526 | F16: 1536 | G16: 1546 | H16: 1556 | I16: 1567 | J16: 1577 | K16: 1587
A17: 14 | B17: 1597 | C17: 1608 | D17: 1618 | E17: 1629 | F17: 1639 | G17: 1650 | H17: 1661 | I17: 1672 | J17: 1682 | K17: 1693
A18: 15 | B18: 1704 | C18: 1715 | D18: 1726 | E18: 1737 | F18: 1749 | G18: 1760 | H18: 1771 | I18: 1783 | J18: 1794 | K18: 1806
A19: 16 | B19: =calcSatVapPres($A19+B$2)*1000 -> 1817 | C19: 1829 | D19: 1840 | E19: 1852 | F19: 1864 | G19: 1876 | H19: 1888 | I19: 1900 | J19: 1912 | K19: 1924
A20: 17 | B20: 1937 | C20: 1949 | D20: 1961 | E20: 1974 | F20: 1986 | G20: 1999 | H20: 2011 | I20: 2024 | J20: 2037 | K20: 2050
A21: 18 | B21: 2063 | C21: 2076 | D21: 2089 | E21: 2102 | F21: 2115 | G21: 2129 | H21: 2142 | I21: 2155 | J21: 2169 | K21: 2183
A22: 19 | B22: 2196 | C22: 2210 | D22: 2224 | E22: 2238 | F22: 2252 | G22: 2266 | H22: 2280 | I22: 2294 | J22: 2308 | K22: 2323
A23: 20 | B23: 2337 | C23: 2352 | D23: 2366 | E23: 2381 | F23: 2396 | G23: 2410 | H23: 2425 | I23: 2440 | J23: 2455 | K23: 2471
A24: 21 | B24: 2486 | C24: 2501 | D24: 2517 | E24: 2532 | F24: 2548 | G24: 2563 | H24: 2579 | I24: 2595 | J24: 2611 | K24: 2627
A25: 22 | B25: 2643 | C25: 2659 | D25: 2675 | E25: 2692 | F25: 2708 | G25: 2725 | H25: 2741 | I25: 2758 | J25: 2775 | K25: 2791
A26: 23 | B26: 2808 | C26: 2825 | D26: 2843 | E26: 2860 | F26: 2877 | G26: 2895 | H26: 2912 | I26: 2930 | J26: 2947 | K26: 2965
A27: 24 | B27: 2983 | C27: 3001 | D27: 3019 | E27: 3037 | F27: 3055 | G27: 3074 | H27: 3092 | I27: 3111 | J27: 3129 | K27: 3148
A28: 25 | B28: 3167 | C28: 3186 | D28: 3205 | E28: 3224 | F28: 3243 | G28: 3263 | H28: 3282 | I28: 3302 | J28: 3321 | K28: 3341
A29: 26 | B29: 3361 | C29: 3381 | D29: 3401 | E29: 3421 | F29: 3441 | G29: 3461 | H29: 3482 | I29: 3502 | J29: 3523 | K29: 3544
A30: 27 | B30: 3565 | C30: 3586 | D30: 3607 | E30: 3628 | F30: 3649 | G30: 3671 | H30: 3692 | I30: 3714 | J30: 3736 | K30: 3757
A31: 28 | B31: 3779 | C31: 3802 | D31: 3824 | E31: 3846 | F31: 3868 | G31: 3891 | H31: 3914 | I31: 3936 | J31: 3959 | K31: 3982
A32: 29 | B32: 4005 | C32: 4029 | D32: 4052 | E32: 4075 | F32: 4099 | G32: 4123 | H32: 4146 | I32: 4170 | J32: 4194 | K32: 4219
A33: 30 | B33: 4243 | C33: 4267 | D33: 4292 | E33: 4316 | F33: 4341 | G33: 4366 | H33: 4391 | I33: 4416 | J33: 4442 | K33: 4467
A34: 31 | B34: 4493 | C34: 4518 | D34: 4544 | E34: 4570 | F34: 4596 | G34: =calcSatVapPres($A34+G$2)*1000 -> 4622 | H34: 4648 | I34: 4675 | J34: 4701 | K34: 4728
A35: 32 | B35: 4755 | C35: 4782 | D35: 4809 | E35: 4836 | F35: 4864 | G35: 4891 | H35: 4919 | I35: 4946 | J35: 4974 | K35: 5002
A36: 33 | B36: 5031 | C36: 5059 | D36: 5087 | E36: 5116 | F36: 5145 | G36: 5173 | H36: 5202 | I36: 5232 | J36: 5261 | K36: 5290
A37: 34 | B37: 5320 | C37: 5350 | D37: 5379 | E37: 5409 | F37: 5440 | G37: 5470 | H37: 5500 | I37: 5531 | J37: 5562 | K37: 5592
A38: 35 | B38: 5623 | C38: 5655 | D38: 5686 | E38: 5717 | F38: 5749 | G38: 5781 | H38: 5813 | I38: 5845 | J38: 5877 | K38: 5909
A39: 36 | B39: 5942 | C39: 5975 | D39: 6008 | E39: 6041 | F39: 6074 | G39: 6107 | H39: 6141 | I39: 6174 | J39: 6208 | K39: 6242
A40: 37 | B40: 6276 | C40: 6310 | D40: 6345 | E40: 6379 | F40: 6414 | G40: 6449 | H40: 6484 | I40: 6519 | J40: 6555 | K40: 6590
A41: 38 | B41: 6626 | C41: 6662 | D41: 6698 | E41: 6734 | F41: 6771 | G41: 6808 | H41: 6844 | I41: 6881 | J41: 6918 | K41: 6956
A42: 39 | B42: 6993 | C42: 7031 | D42: 7069 | E42: 7107 | F42: 7145 | G42: 7183 | H42: 7222 | I42: 7260 | J42: 7299 | K42: 7338
A43: 40 | B43: 7378 | C43: 7417 | D43: 7457 | E43: 7496 | F43: 7536 | G43: 7576 | H43: 7617 | I43: 7657 | J43: 7698 | K43: 7739
A44: 41 | B44: 7780 | C44: 7821 | D44: 7863 | E44: 7904 | F44: 7946 | G44: 7988 | H44: 8030 | I44: 8073 | J44: 8116 | K44: 8158
A45: 42 | B45: 8201 | C45: 8245 | D45: 8288 | E45: 8331 | F45: 8375 | G45: 8419 | H45: 8463 | I45: 8508 | J45: 8552 | K45: 8597
A46: 43 | B46: 8642 | C46: 8687 | D46: 8733 | E46: 8778 | F46: 8824 | G46: 8870 | H46: 8916 | I46: 8963 | J46: 9009 | K46: 9056
A47: 44 | B47: 9103 | C47: 9151 | D47: 9198 | E47: 9246 | F47: 9294 | G47: 9342 | H47: 9390 | I47: 9439 | J47: 9487 | K47: 9536
A48: 45 | B48: 9586 | C48: 9635 | D48: 9685 | E48: 9734 | F48: 9784 | G48: 9835 | H48: 9885 | I48: 9936 | J48: 9987 | K48: 10038
A49: 46 | B49: 10090 | C49: 10141 | D49: 10193 | E49: 10245 | F49: 10297 | G49: 10350 | H49: 10403 | I49: 10456 | J49: 10509 | K49: 10563
A50: 47 | B50: 10616 | C50: 10670 | D50: 10724 | E50: 10779 | F50: 10833 | G50: 10888 | H50: 10943 | I50: 10999 | J50: 11054 | K50: 11110
A51: 48 | B51: 11166 | C51: 11223 | D51: 11279 | E51: 11336 | F51: 11393 | G51: 11451 | H51: 11508 | I51: 11566 | J51: 11624 | K51: 11682
A52: 49 | B52: 11741 | C52: 11800 | D52: 11859 | E52: 11918 | F52: 11978 | G52: 12038 | H52: 12098 | I52: 12158 | J52: 12219 | K52: 12280
A53: 50 | B53: 12341 | C53: 12402 | D53: 12464 | E53: 12526 | F53: 12588 | G53: 12650 | H53: 12713 | I53: 12776 | J53: 12839 | K53: 12903

Sheet Tabela2A_Slope_Lamb_PsicConst
A1: Tabela 2A. Declive da curva da tensão de saturação verso temperatura (D), calor latente de vaporização da água (l) e constante psicrométrica à pressão atmos férica normal (101,3 kPa)
A3: T | B3: D | C3: l | D3: g | F3: T | G3: D | H3: l | I3: g
A4: [ºC] | B4: [Pa ºC-1] | C4: [J g-1] | D4: [Pa ºC-1] | F4: [ºC] | G4: [Pa ºC-1] | H4: [J g-1] | I4: [Pa ºC-1]
A5: 0 | B5: =calcSlope(A5)*1000 -> 45 | C5: =calcLatHeatH2O(A5) -> 2501 | D5: =1.63*101300/C5 -> 66.0 | F5: 26 | G5: =calcSlope(F5)*1000 -> 199 | H5: =calcLatHeatH2O(F5) -> 2439 | I5: =1.63*101300/H5 -> 67.7
A6: 1 | B6: =calcSlope(A6)*1000 -> 48 | C6: =calcLatHeatH2O(A6) -> 2498 | D6: =1.63*101300/C6 -> 66.1 | F6: 27 | G6: =calcSlope(F6)*1000 -> 209 | H6: =calcLatHeatH2O(F6) -> 2437 | I6: =1.63*101300/H6 -> 67.8
A7: 2 | B7: 51 | C7: 2496 | D7: 66.2 | F7: 28 | G7: 220 | H7: 2435 | I7: 67.8
A8: 3 | B8: 55 | C8: 2494 | D8: 66.2 | F8: 29 | G8: 232 | H8: 2432 | I8: 67.9
A9: 4 | B9: 58 | C9: 2491 | D9: 66.3 | F9: 30 | G9: 244 | H9: 2430 | I9: 68.0
A10: 5 | B10: 62 | C10: 2489 | D10: 66.3 | F10: 31 | G10: 257 | H10: 2427 | I10: 68.0
A11: 6 | B11: 66 | C11: 2487 | D11: 66.4 | F11: 32 | G11: 270 | H11: 2425 | I11: =1.63*101300/H11 -> 68.1
A12: 7 | B12: 70 | C12: 2484 | D12: 66.5 | F12: 33 | G12: 283 | H12: 2423 | I12: 68.2
A13: 8 | B13: 74 | C13: 2482 | D13: 66.5 | F13: 34 | G13: 297 | H13: 2420 | I13: 68.2
A14: 9 | B14: 78 | C14: 2480 | D14: 66.6 | F14: 35 | G14: 312 | H14: 2418 | I14: 68.3
A15: 10 | B15: 83 | C15: 2477 | D15: 66.7 | F15: 36 | G15: 327 | H15: 2415 | I15: 68.4
A16: 11 | B16: 88 | C16: 2475 | D16: 66.7 | F16: 37 | G16: 343 | H16: 2413 | I16: 68.4
A17: 12 | B17: 93 | C17: 2473 | D17: 66.8 | F17: 38 | G17: 360 | H17: 2410 | I17: 68.5
A18: 13 | B18: 98 | C18: 2470 | D18: 66.8 | F18: 39 | G18: 377 | H18: 2408 | I18: 68.6
A19: 14 | B19: 104 | C19: 2468 | D19: 66.9 | F19: 40 | G19: 395 | H19: 2405 | I19: 68.7
A20: 15 | B20: 110 | C20: 2466 | D20: 67.0 | F20: 41 | G20: 413 | H20: 2403 | I20: 68.7
A21: 16 | B21: 116 | C21: 2463 | D21: 67.0 | F21: 42 | G21: 432 | H21: 2400 | I21: 68.8
A22: 17 | B22: 123 | C22: 2461 | D22: 67.1 | F22: 43 | G22: 452 | H22: 2398 | I22: 68.9
A23: 18 | B23: 130 | C23: 2458 | D23: 67.2 | F23: 44 | G23: 472 | H23: 2395 | I23: 68.9
A24: 19 | B24: 137 | C24: 2456 | D24: 67.2 | F24: 45 | G24: 493 | H24: 2392 | I24: 69.0
A25: 20 | B25: 145 | C25: 2454 | D25: 67.3 | F25: 46 | G25: 515 | H25: 2390 | I25: 69.1
A26: 21 | B26: 153 | C26: 2451 | D26: 67.4 | F26: 47 | G26: 538 | H26: 2387 | I26: 69.2
A27: 22 | B27: 161 | C27: 2449 | D27: 67.4 | F27: 48 | G27: 561 | H27: 2385 | I27: 69.2
A28: 23 | B28: 170 | C28: 2447 | D28: 67.5 | F28: 49 | G28: 585 | H28: 2382 | I28: 69.3
A29: 24 | B29: 179 | C29: 2444 | D29: 67.6 | F29: 50 | G29: 610 | H29: 2379 | I29: 69.4
A30: 25 | B30: 189 | C30: =calcLatHeatH2O(A30) -> 2442 | D30: 67.6 | F30: 51 | G30: 635 | H30: =calcLatHeatH2O(F30) -> 2377 | I30: 69.5
